[Event "*** MasterClass Titled Tuesday Blitz"]
[Site "Chess.com"]
[Date "2017.12.12"]
[Round "8"]
[White "Enzy63"]
[Black "Alex_Banzea"]
[Result "1-0"]
[WhiteElo "2110"]
[BlackElo "2212"]
[TimeControl "180+2"]
[EndTime "14:53:52 PST"]
[Termination "Enzy63 won on time"]

1. d4 {[%clk 0:03:01.9]} 1... Nf6 {[%clk 0:02:59.6]} 2. Nf3 {[%clk 0:03:02.8]}
2... e6 {[%clk 0:03:01.5]} 3. g3 {[%clk 0:03:03.9]} 3... d5 {[%clk 0:03:00.4]}
4. Bg2 {[%clk 0:03:05]} 4... Be7 {[%clk 0:03:02.3]} 5. O-O {[%clk 0:03:06.1]}
5... O-O {[%clk 0:03:04.2]} 6. c4 {[%clk 0:03:07.3]} 6... dxc4 {[%clk
0:03:05.7]} 7. Qc2 {[%clk 0:03:08.5]} 7... a6 {[%clk 0:03:07.2]} 8. a4 {[%clk
0:03:09.3]} 8... Bd7 {[%clk 0:03:08.3]} 9. Qxc4 {[%clk 0:03:09.9]} 9... Bc6
{[%clk 0:03:09.8]} 10. Bg5 {[%clk 0:03:11]} 10... Nbd7 {[%clk 0:02:59.4]} 11.
Nc3 {[%clk 0:03:02.1]} 11... h6 {[%clk 0:02:46.6]} 12. Bxf6 {[%clk 0:02:52.9]}
12... Nxf6 {[%clk 0:02:45.8]} 13. Ne5 {[%clk 0:02:51]} 13... Bxg2 {[%clk
0:02:46.4]} 14. Kxg2 {[%clk 0:02:52.9]} 14... a5 {[%clk 0:02:46.9]} 15. Rfd1
{[%clk 0:02:46.3]} 15... c6 {[%clk 0:02:47.8]} 16. Qb3 {[%clk 0:02:43.7]} 16...
Qc7 {[%clk 0:02:47.8]} 17. Rac1 {[%clk 0:02:39.7]} 17... Rfd8 {[%clk 0:02:45.1]}
18. e3 {[%clk 0:02:22.9]} 18... Nd5 {[%clk 0:02:41.6]} 19. Nd3 {[%clk
0:02:15.9]} 19... Ra6 {[%clk 0:02:38]} 20. Nc5 {[%clk 0:01:59.8]} 20... Rb6
{[%clk 0:02:36.7]} 21. Qc2 {[%clk 0:01:57.5]} 21... Rb4 {[%clk 0:02:12.8]} 22.
Nd3 {[%clk 0:01:43.4]} 22... Rb6 {[%clk 0:02:11.9]} 23. Nc5 {[%clk 0:01:44.2]}
23... Qb8 {[%clk 0:02:10.6]} 24. Qe2 {[%clk 0:01:31]} 24... Rb4 {[%clk
0:02:07.4]} 25. Ra1 {[%clk 0:01:20.7]} 25... Qa7 {[%clk 0:02:07]} 26. Nd3 {[%clk
0:01:20.1]} 26... Rb3 {[%clk 0:02:07.3]} 27. Qc2 {[%clk 0:01:19.3]} 27... Qb6
{[%clk 0:02:08]} 28. Rab1 {[%clk 0:01:14.7]} 28... Bg5 {[%clk 0:01:43.2]} 29.
Re1 {[%clk 0:01:05.6]} 29... Be7 {[%clk 0:01:39.2]} 30. Nc1 {[%clk 0:00:51]}
30... Rb4 {[%clk 0:01:38.4]} 31. Nd3 {[%clk 0:00:51.5]} 31... Rc4 {[%clk
0:01:35.7]} 32. Qd1 {[%clk 0:00:37.3]} 32... Qa6 {[%clk 0:01:33.2]} 33. Ne4
{[%clk 0:00:36.1]} 33... b6 {[%clk 0:01:25.2]} 34. b3 {[%clk 0:00:31.8]} 34...
Nc3 {[%clk 0:01:26]} 35. Nxc3 {[%clk 0:00:32.2]} 35... Rxc3 {[%clk 0:01:26.7]}
36. Ne5 {[%clk 0:00:32.1]} 36... Bb4 {[%clk 0:01:20.8]} 37. Qf3 {[%clk
0:00:30.1]} 37... Qb7 {[%clk 0:01:19.8]} 38. Rec1 {[%clk 0:00:30]} 38... Rd5
{[%clk 0:00:46.8]} 39. Rxc3 {[%clk 0:00:27.2]} 39... Bxc3 {[%clk 0:00:48]} 40.
Rc1 {[%clk 0:00:28.8]} 40... f6 {[%clk 0:00:47.3]} 41. Nd3 {[%clk 0:00:23.1]}
41... Bd2 {[%clk 0:00:43.9]} 42. Rc2 {[%clk 0:00:23.5]} 42... Bb4 {[%clk
0:00:45]} 43. Nf4 {[%clk 0:00:24.3]} 43... Rd6 {[%clk 0:00:44.3]} 44. Qg4 {[%clk
0:00:25.2]} 44... Qf7 {[%clk 0:00:43.6]} 45. Qf3 {[%clk 0:00:24.7]} 45... g5
{[%clk 0:00:43.4]} 46. Nd3 {[%clk 0:00:23.4]} 46... e5 {[%clk 0:00:24.7]} 47.
Rxc6 {[%clk 0:00:22.1]} 47... Rxc6 {[%clk 0:00:24.3]} 48. Qxc6 {[%clk
0:00:23.2]} 48... Qxb3 {[%clk 0:00:25.9]} 49. Nxb4 {[%clk 0:00:23]} 49... axb4
{[%clk 0:00:27.2]} 50. Qe8+ {[%clk 0:00:22.8]} 50... Kg7 {[%clk 0:00:26.5]} 51.
Qe7+ {[%clk 0:00:23.3]} 51... Kg6 {[%clk 0:00:24.7]} 52. dxe5 {[%clk 0:00:22.8]}
52... fxe5 {[%clk 0:00:25.5]} 53. Qd6+ {[%clk 0:00:22.2]} 53... Kf5 {[%clk
0:00:21]} 54. Qd7+ {[%clk 0:00:20.7]} 54... Ke4 {[%clk 0:00:21.2]} 55. Qh7+
{[%clk 0:00:21.5]} 55... Kd5 {[%clk 0:00:20.4]} 56. Qf7+ {[%clk 0:00:22.7]}
56... Ke4 {[%clk 0:00:21]} 57. Qxb3 {[%clk 0:00:24.2]} 1-0

[Event "*** MasterClass Titled Tuesday Blitz"]
[Site "Chess.com"]
[Date "2017.12.12"]
[Round "8"]
[White "Bryakin_Mikhail"]
[Black "Big_Fishy"]
[Result "1-0"]
[WhiteElo "2540"]
[BlackElo "2367"]
[TimeControl "180+2"]
[EndTime "14:53:53 PST"]
[Termination "Bryakin_Mikhail won by resignation"]

1. b3 {[%clk 0:03:00.5]} 1... e5 {[%clk 0:02:59.8]} 2. Bb2 {[%clk 0:03:02.4]}
2... f6 {[%clk 0:03:00.7]} 3. Nf3 {[%clk 0:03:03.6]} 3... d5 {[%clk 0:03:01.5]}
4. e3 {[%clk 0:03:04]} 4... c5 {[%clk 0:03:02]} 5. Bb5+ {[%clk 0:03:03.6]} 5...
Nc6 {[%clk 0:03:03]} 6. c4 {[%clk 0:02:59.8]} 6... d4 {[%clk 0:03:03.1]} 7. exd4
{[%clk 0:02:58.4]} 7... cxd4 {[%clk 0:03:03.9]} 8. d3 {[%clk 0:02:58.6]} 8...
Bb4+ {[%clk 0:03:02]} 9. Nbd2 {[%clk 0:02:58.1]} 9... Ne7 {[%clk 0:02:57.6]} 10.
O-O {[%clk 0:02:57.9]} 10... O-O {[%clk 0:02:57]} 11. a3 {[%clk 0:02:59.3]}
11... Bd6 {[%clk 0:02:51.3]} 12. b4 {[%clk 0:02:58.3]} 12... a6 {[%clk
0:02:51.9]} 13. Ba4 {[%clk 0:02:57.5]} 13... Kh8 {[%clk 0:02:47.8]} 14. c5
{[%clk 0:02:57.1]} 14... Bc7 {[%clk 0:02:48.5]} 15. Bb3 {[%clk 0:02:54.4]} 15...
Nd5 {[%clk 0:02:44.9]} 16. Ne4 {[%clk 0:02:48.1]} 16... Nf4 {[%clk 0:02:35.5]}
17. Bc1 {[%clk 0:02:45.8]} 17... Qe8 {[%clk 0:02:30.3]} 18. Bxf4 {[%clk
0:02:45.5]} 18... exf4 {[%clk 0:02:30.5]} 19. Re1 {[%clk 0:02:42.4]} 19... Qh5
{[%clk 0:02:23.1]} 20. Kh1 {[%clk 0:02:42.4]} 20... Bg4 {[%clk 0:02:19.3]} 21.
Ned2 {[%clk 0:02:38.2]} 21... Ne5 {[%clk 0:02:18.2]} 22. Bc2 {[%clk 0:02:18.1]}
22... Rae8 {[%clk 0:02:15.1]} 23. Kg1 {[%clk 0:02:18]} 23... Nxf3+ {[%clk
0:02:04.7]} 24. Nxf3 {[%clk 0:02:18.6]} 24... Rxe1+ {[%clk 0:02:02.9]} 25. Qxe1
{[%clk 0:02:20.5]} 25... Bxf3 {[%clk 0:02:03.8]} 26. gxf3 {[%clk 0:02:22.4]}
26... Re8 {[%clk 0:01:24.1]} 27. Qf1 {[%clk 0:02:23.5]} 27... Qxf3 {[%clk
0:01:23.1]} 28. Qg2 {[%clk 0:02:16.8]} 28... Qe2 {[%clk 0:01:10.8]} 29. Qxb7
{[%clk 0:02:17.7]} 29... Qxc2 {[%clk 0:01:05.5]} 30. Qxc7 {[%clk 0:02:14.4]}
30... Qxd3 {[%clk 0:00:57]} 31. Qxf4 {[%clk 0:02:14.7]} 31... Re5 {[%clk
0:00:54.6]} 32. h4 {[%clk 0:02:12.2]} 32... h6 {[%clk 0:00:50.3]} 33. c6 {[%clk
0:02:05.7]} 33... Qc3 {[%clk 0:00:45]} 34. Rd1 {[%clk 0:02:06.7]} 34... Qxc6
{[%clk 0:00:38.3]} 35. Qxd4 {[%clk 0:02:07]} 35... Re4 {[%clk 0:00:32.9]} 36.
Qd5 {[%clk 0:01:57.6]} 36... Qc2 {[%clk 0:00:23]} 37. h5 {[%clk 0:01:09.1]}
37... Rg4+ {[%clk 0:00:20.2]} 38. Kf1 {[%clk 0:01:09.9]} 38... Rf4 {[%clk
0:00:16.3]} 39. Qd8+ {[%clk 0:01:09]} 39... Kh7 {[%clk 0:00:16.8]} 40. Qd3+
{[%clk 0:01:10.9]} 40... Qxd3+ {[%clk 0:00:17.9]} 41. Rxd3 {[%clk 0:01:12.8]}
41... Rf5 {[%clk 0:00:18.4]} 42. Rh3 {[%clk 0:01:08.7]} 42... a5 {[%clk
0:00:19.4]} 43. Rh4 {[%clk 0:01:08.5]} 43... axb4 {[%clk 0:00:19.5]} 44. axb4
{[%clk 0:01:10.4]} 44... Rb5 {[%clk 0:00:19.3]} 45. Ke2 {[%clk 0:01:11.1]} 45...
Kg8 {[%clk 0:00:20.7]} 46. Kd3 {[%clk 0:01:12.1]} 46... Kf7 {[%clk 0:00:22.1]}
47. Kc4 {[%clk 0:01:13.6]} 47... Rf5 {[%clk 0:00:21.9]} 48. b5 {[%clk
0:01:12.5]} 48... Rxf2 {[%clk 0:00:22.2]} 49. Kc5 {[%clk 0:01:13.1]} 49... Rc2+
{[%clk 0:00:22.7]} 50. Rc4 {[%clk 0:01:13.3]} 50... Rb2 {[%clk 0:00:22.8]} 51.
Kc6 {[%clk 0:01:13.4]} 51... f5 {[%clk 0:00:23.7]} 52. b6 {[%clk 0:01:14.3]}
52... Kf6 {[%clk 0:00:24.1]} 53. b7 {[%clk 0:01:14]} 53... Kg5 {[%clk
0:00:24.9]} 54. Rc5 {[%clk 0:01:14.8]} 54... Rxb7 {[%clk 0:00:21.3]} 55. Kxb7
{[%clk 0:01:16.7]} 55... Kg4 {[%clk 0:00:21.5]} 56. Kc6 {[%clk 0:01:17.4]} 56...
f4 {[%clk 0:00:21.9]} 57. Kd5 {[%clk 0:01:13.2]} 57... f3 {[%clk 0:00:20.4]} 58.
Rc7 {[%clk 0:01:05.5]} 58... Kxh5 {[%clk 0:00:15.3]} 59. Ke4 {[%clk 0:01:01.1]}
59... f2 {[%clk 0:00:13.7]} 60. Rf7 {[%clk 0:01:01.9]} 60... g5 {[%clk 0:00:15]}
61. Rxf2 {[%clk 0:01:02.6]} 61... Kg4 {[%clk 0:00:15.9]} 62. Rg2+ {[%clk
0:01:00.3]} 62... Kh3 {[%clk 0:00:16.8]} 63. Kf3 {[%clk 0:01:01.8]} 63... h5
{[%clk 0:00:10.5]} 64. Rxg5 {[%clk 0:01:02.6]} 64... h4 {[%clk 0:00:11.6]} 65.
Rh5 {[%clk 0:01:02.2]} 65... Kh2 {[%clk 0:00:12]} 66. Rxh4+ {[%clk 0:01:03.5]}
1-0

[Event "*** MasterClass Titled Tuesday Blitz"]
[Site "Chess.com"]
[Date "2017.12.12"]
[Round "8"]
[White "aa175"]
[Black "AquivaRubinstein"]
[Result "0-1"]
[WhiteElo "1900"]
[BlackElo "2269"]
[TimeControl "180+2"]
[EndTime "14:54:10 PST"]
[Termination "AquivaRubinstein won by checkmate"]

1. e4 {[%clk 0:03:01.9]} 1... c5 {[%clk 0:02:57]} 2. Nf3 {[%clk 0:03:02.5]} 2...
d6 {[%clk 0:02:56.6]} 3. d4 {[%clk 0:03:02.1]} 3... cxd4 {[%clk 0:02:57.9]} 4.
Nxd4 {[%clk 0:03:04]} 4... Nf6 {[%clk 0:02:59.1]} 5. Nc3 {[%clk 0:03:05.6]} 5...
g6 {[%clk 0:02:55.9]} 6. Be3 {[%clk 0:03:05.3]} 6... Bg7 {[%clk 0:02:57]} 7. Qd2
{[%clk 0:03:05.1]} 7... Ng4 {[%clk 0:02:54.7]} 8. Bg5 {[%clk 0:03:04.3]} 8... h6
{[%clk 0:02:52.5]} 9. Bh4 {[%clk 0:03:04.9]} 9... Qb6 {[%clk 0:02:46.6]} 10. Nb3
{[%clk 0:02:45.7]} 10... Be6 {[%clk 0:02:37.9]} 11. f3 {[%clk 0:02:43.8]} 11...
Ne5 {[%clk 0:02:33.1]} 12. f4 {[%clk 0:02:35.4]} 12... Nc4 {[%clk 0:02:21.6]}
13. Bxc4 {[%clk 0:02:35.5]} 13... Bxc4 {[%clk 0:02:23.3]} 14. O-O-O {[%clk
0:02:36.4]} 14... Nc6 {[%clk 0:02:20.7]} 15. e5 {[%clk 0:02:25]} 15... O-O
{[%clk 0:02:12.6]} 16. exd6 {[%clk 0:02:19.7]} 16... exd6 {[%clk 0:02:13.7]} 17.
Qxd6 {[%clk 0:02:17.4]} 17... a5 {[%clk 0:02:07.1]} 18. Qc5 {[%clk 0:02:06.2]}
18... Qc7 {[%clk 0:02:03.3]} 19. Qxc4 {[%clk 0:02:05.5]} 19... a4 {[%clk
0:02:04.4]} 20. Nd5 {[%clk 0:02:03.1]} 20... Qc8 {[%clk 0:01:54.4]} 21. Nb6
{[%clk 0:01:57.5]} 21... Qg4 {[%clk 0:01:52.3]} 22. Nc5 {[%clk 0:01:47.2]} 22...
Qxh4 {[%clk 0:01:49.5]} 23. Nxa8 {[%clk 0:01:47.9]} 23... Rxa8 {[%clk
0:01:51.1]} 24. Nxb7 {[%clk 0:01:45.9]} 24... Qf6 {[%clk 0:01:23.5]} 25. c3
{[%clk 0:01:30.3]} 25... Ne7 {[%clk 0:01:02.8]} 26. Rd8+ {[%clk 0:01:15.8]}
26... Rxd8 {[%clk 0:01:01.4]} 27. Nxd8 {[%clk 0:01:15.5]} 27... a3 {[%clk
0:01:02.3]} 28. Rd1 {[%clk 0:01:00.5]} 28... axb2+ {[%clk 0:00:58.2]} 29. Kxb2
{[%clk 0:01:02]} 29... Nf5 {[%clk 0:00:41]} 30. Qc6 {[%clk 0:00:50.3]} 30... Qe7
{[%clk 0:00:22.5]} 31. Qb5 {[%clk 0:00:21.2]} 31... Ne3 {[%clk 0:00:20.8]} 32.
Rc1 {[%clk 0:00:18.6]} 32... Qxd8 {[%clk 0:00:20.8]} 33. Qb3 {[%clk 0:00:17.9]}
33... Qd2+ {[%clk 0:00:21.3]} 34. Kb1 {[%clk 0:00:18.4]} 34... Qd3+ {[%clk
0:00:21.1]} 35. Kb2 {[%clk 0:00:19.3]} 35... Nc4+ {[%clk 0:00:22.2]} 36. Ka1
{[%clk 0:00:19.2]} 36... Qd2 {[%clk 0:00:22.2]} 37. Rd1 {[%clk 0:00:15.9]} 37...
Bxc3+ {[%clk 0:00:22]} 38. Kb1 {[%clk 0:00:15.3]} 38... Na3+ {[%clk 0:00:22.7]}
39. Qxa3 {[%clk 0:00:14.6]} 39... Qxd1+ {[%clk 0:00:24]} 40. Qc1 {[%clk
0:00:16.2]} 40... Qxc1+ {[%clk 0:00:19.6]} 41. Kxc1 {[%clk 0:00:18.1]} 41... Kg7
{[%clk 0:00:19.5]} 42. Kc2 {[%clk 0:00:19.3]} 42... Ba5 {[%clk 0:00:20.1]} 43.
Kd3 {[%clk 0:00:20.5]} 43... Kf6 {[%clk 0:00:21.3]} 44. Ke4 {[%clk 0:00:20.8]}
44... h5 {[%clk 0:00:22.4]} 45. h4 {[%clk 0:00:21.4]} 45... Ke6 {[%clk
0:00:23.2]} 46. g3 {[%clk 0:00:20.9]} 46... Be1 {[%clk 0:00:23.4]} 47. Kf3
{[%clk 0:00:21.3]} 47... Kf5 {[%clk 0:00:23.6]} 48. a3 {[%clk 0:00:21.6]} 48...
Bc3 {[%clk 0:00:23.8]} 49. a4 {[%clk 0:00:17.2]} 49... Ba5 {[%clk 0:00:24.1]}
50. Kg2 {[%clk 0:00:17.3]} 50... Kg4 {[%clk 0:00:25.3]} 51. Kf2 {[%clk
0:00:18.5]} 51... Bb6+ {[%clk 0:00:26.4]} 52. Kg2 {[%clk 0:00:19.4]} 52... Ba5
{[%clk 0:00:26.9]} 53. Kf2 {[%clk 0:00:20.4]} 53... Bb4 {[%clk 0:00:27.9]} 54.
Kg2 {[%clk 0:00:16]} 54... Be1 {[%clk 0:00:28.5]} 55. f5 {[%clk 0:00:12.5]}
55... gxf5 {[%clk 0:00:19.8]} 56. Kh1 {[%clk 0:00:07]} 56... Bxg3 {[%clk
0:00:16]} 57. Kg2 {[%clk 0:00:08.9]} 57... Bc7 {[%clk 0:00:16.3]} 58. Kg1 {[%clk
0:00:10.8]} 58... f4 {[%clk 0:00:16.9]} 59. Kf2 {[%clk 0:00:12.3]} 59... Kxh4
{[%clk 0:00:18]} 60. Kg2 {[%clk 0:00:14.2]} 60... Kg4 {[%clk 0:00:19.2]} 61. Kf2
{[%clk 0:00:15.3]} 61... h4 {[%clk 0:00:20.5]} 62. Kg1 {[%clk 0:00:17.1]} 62...
h3 {[%clk 0:00:21.4]} 63. Kh1 {[%clk 0:00:19]} 63... f3 {[%clk 0:00:21]} 64. Kg1
{[%clk 0:00:20.4]} 64... Bb6+ {[%clk 0:00:21.7]} 65. Kh2 {[%clk 0:00:20.6]}
65... f2 {[%clk 0:00:22]} 66. Kh1 {[%clk 0:00:22.4]} 66... f1=Q+ {[%clk
0:00:22.2]} 67. Kh2 {[%clk 0:00:24.3]} 67... Qg2# {[%clk 0:00:23.4]} 0-1

[Event "*** MasterClass Titled Tuesday Blitz"]
[Site "Chess.com"]
[Date "2017.12.12"]
[Round "8"]
[White "lucasmito"]
[Black "Sam_ChessMood"]
[Result "0-1"]
[WhiteElo "2241"]
[BlackElo "2597"]
[TimeControl "180+2"]
[EndTime "14:54:21 PST"]
[Termination "Sam_ChessMood won by resignation"]

1. e4 {[%clk 0:03:01.9]} 1... c5 {[%clk 0:02:59.8]} 2. Nf3 {[%clk 0:03:01.6]}
2... d6 {[%clk 0:03:00.5]} 3. d4 {[%clk 0:03:01.1]} 3... cxd4 {[%clk 0:03:01.7]}
4. Nxd4 {[%clk 0:03:01.5]} 4... Nf6 {[%clk 0:03:03.6]} 5. Nc3 {[%clk 0:02:58.4]}
5... a6 {[%clk 0:03:04.2]} 6. f3 {[%clk 0:02:59.5]} 6... e5 {[%clk 0:03:03]} 7.
Nb3 {[%clk 0:03:00.1]} 7... Be6 {[%clk 0:03:03.7]} 8. Be3 {[%clk 0:03:01.6]}
8... Be7 {[%clk 0:03:03.5]} 9. Qd2 {[%clk 0:03:02.6]} 9... O-O {[%clk
0:03:00.1]} 10. O-O-O {[%clk 0:03:03.5]} 10... a5 {[%clk 0:03:01.5]} 11. a4
{[%clk 0:03:04.2]} 11... Na6 {[%clk 0:03:02.2]} 12. g4 {[%clk 0:03:04]} 12...
Nb4 {[%clk 0:03:02.9]} 13. Kb1 {[%clk 0:03:04.9]} 13... Qc7 {[%clk 0:02:29.2]}
14. h4 {[%clk 0:02:36]} 14... Rfc8 {[%clk 0:02:26.4]} 15. h5 {[%clk 0:02:30.2]}
15... Rab8 {[%clk 0:02:11.4]} 16. g5 {[%clk 0:02:30.7]} 16... Nd7 {[%clk
0:02:11.1]} 17. g6 {[%clk 0:02:31.8]} 17... Nf6 {[%clk 0:01:47.9]} 18. h6 {[%clk
0:02:30.7]} 18... fxg6 {[%clk 0:01:45.2]} 19. hxg7 {[%clk 0:02:31.7]} 19... d5
{[%clk 0:01:38.2]} 20. Bh3 {[%clk 0:01:53.1]} 20... Bxh3 {[%clk 0:01:37.2]} 21.
Rxh3 {[%clk 0:01:55]} 21... d4 {[%clk 0:01:37]} 22. Nxd4 {[%clk 0:01:55.4]}
22... exd4 {[%clk 0:01:38.2]} 23. Bxd4 {[%clk 0:01:57.3]} 23... Nh5 {[%clk
0:01:12.6]} 24. Qh6 {[%clk 0:01:41.9]} 24... Qc6 {[%clk 0:01:00.4]} 25. Rdh1
{[%clk 0:01:31.4]} 25... Rd8 {[%clk 0:01:01.4]} 26. Be5 {[%clk 0:01:00.2]} 26...
Rbc8 {[%clk 0:01:02.4]} 27. f4 {[%clk 0:00:51.4]} 27... Qd7 {[%clk 0:00:22.9]}
28. Rxh5 {[%clk 0:00:25.9]} 28... gxh5 {[%clk 0:00:24]} 29. Qxh5 {[%clk
0:00:26.8]} 29... Bh4 {[%clk 0:00:19.5]} 30. Rxh4 {[%clk 0:00:16.2]} 30... h6
{[%clk 0:00:19]} 31. Rh1 {[%clk 0:00:11.9]} 31... Qd2 {[%clk 0:00:19.7]} 32. Qh2
{[%clk 0:00:07.3]} 32... Qxh2 {[%clk 0:00:19.1]} 33. Rxh2 {[%clk 0:00:09.2]}
33... Rc6 {[%clk 0:00:15.7]} 34. b3 {[%clk 0:00:09.6]} 34... Re8 {[%clk
0:00:12.9]} 35. Kb2 {[%clk 0:00:09]} 35... Rxe5 {[%clk 0:00:13]} 36. fxe5 {[%clk
0:00:09.4]} 36... Rc5 {[%clk 0:00:10.4]} 37. Nd5 {[%clk 0:00:05.3]} 37... Kxg7
{[%clk 0:00:07.6]} 38. Nxb4 {[%clk 0:00:04.6]} 38... axb4 {[%clk 0:00:09.1]} 39.
e6 {[%clk 0:00:03.2]} 39... Re5 {[%clk 0:00:08.3]} 40. Rd2 {[%clk 0:00:04.7]}
40... Rxe6 {[%clk 0:00:07.1]} 41. Rd7+ {[%clk 0:00:04.6]} 41... Kf6 {[%clk
0:00:08.4]} 42. Rxb7 {[%clk 0:00:06]} 42... Rxe4 {[%clk 0:00:09.7]} 43. a5
{[%clk 0:00:06.7]} 43... Re5 {[%clk 0:00:09.1]} 44. a6 {[%clk 0:00:07]} 44...
Ra5 {[%clk 0:00:09.7]} 45. Rxb4 {[%clk 0:00:03.4]} 45... Rxa6 {[%clk 0:00:09.2]}
46. c4 {[%clk 0:00:05]} 46... h5 {[%clk 0:00:07.1]} 47. Rb8 {[%clk 0:00:06]}
47... Kg5 {[%clk 0:00:06.4]} 48. Rd8 {[%clk 0:00:02.9]} 48... Rh6 {[%clk
0:00:06.9]} 49. Kc3 {[%clk 0:00:03.8]} 49... h4 {[%clk 0:00:08.3]} 50. b4 {[%clk
0:00:05.2]} 50... h3 {[%clk 0:00:09.7]} 51. c5 {[%clk 0:00:05.8]} 51... h2
{[%clk 0:00:10]} 52. Rd1 {[%clk 0:00:06.2]} 52... Kf4 {[%clk 0:00:11.3]} 53. Kc4
{[%clk 0:00:06.3]} 53... h1=Q {[%clk 0:00:11.9]} 54. Rxh1 {[%clk 0:00:06.6]}
54... Rxh1 {[%clk 0:00:13.8]} 55. c6 {[%clk 0:00:03.8]} 55... Ke5 {[%clk
0:00:13.6]} 56. Kc5 {[%clk 0:00:04.9]} 56... Rc1+ {[%clk 0:00:14.3]} 57. Kb6
{[%clk 0:00:06.2]} 57... Kd6 {[%clk 0:00:15.6]} 58. b5 {[%clk 0:00:07.6]} 58...
Rc5 {[%clk 0:00:16.2]} 59. Ka6 {[%clk 0:00:08.2]} 59... Kc7 {[%clk 0:00:17]} 60.
Ka5 {[%clk 0:00:08.6]} 60... Rc1 {[%clk 0:00:16.7]} 61. Kb4 {[%clk 0:00:09.4]}
61... Kb6 {[%clk 0:00:17.1]} 0-1